[Event "Betsys MČR v online bleskovém šachu 2021"]
[Site "Chess.com"]
[Date "2021.04.17"]
[Round "13"]
[White "mayerrs"]
[Black "TrickyPeat"]
[Result "1-0"]
[WhiteElo "1870"]
[BlackElo "2143"]
[TimeControl "180+1"]
[EndTime "11:11:42 PDT"]
[Termination "Uživatel mayerrs zvítězil na čas"]

1. g3 {[%clk 0:03:00.9]} 1... Nf6 {[%clk 0:02:59.4]} 2. Bg2 {[%clk 0:03:01.8]}
2... g6 {[%clk 0:02:57.6]} 3. e3 {[%clk 0:03:02.7]} 3... Bg7 {[%clk 0:02:57.6]}
4. Ne2 {[%clk 0:03:03.6]} 4... O-O {[%clk 0:02:57.1]} 5. O-O {[%clk 0:03:04.5]}
5... d6 {[%clk 0:02:55.4]} 6. d4 {[%clk 0:03:03.7]} 6... Nbd7 {[%clk 0:02:53.9]}
7. c4 {[%clk 0:03:03.8]} 7... Re8 {[%clk 0:02:53.2]} 8. b4 {[%clk 0:03:03.8]}
8... a5 {[%clk 0:02:51.7]} 9. b5 {[%clk 0:03:03.4]} 9... e5 {[%clk 0:02:50.9]}
10. a4 {[%clk 0:02:59.5]} 10... exd4 {[%clk 0:02:45.3]} 11. Nxd4 {[%clk
0:03:00.4]} 11... Nc5 {[%clk 0:02:43.7]} 12. Bb2 {[%clk 0:02:56.8]} 12... Ng4
{[%clk 0:02:39.2]} 13. Nd2 {[%clk 0:02:36.9]} 13... Ne5 {[%clk 0:02:35.4]} 14.
N2f3 {[%clk 0:02:19.9]} 14... Nxc4 {[%clk 0:02:33.3]} 15. Qc2 {[%clk 0:02:14.5]}
15... Nxb2 {[%clk 0:02:32.6]} 16. Qxb2 {[%clk 0:02:15.4]} 16... Bg4 {[%clk
0:02:23.1]} 17. Qc2 {[%clk 0:02:04.8]} 17... Qd7 {[%clk 0:02:16.8]} 18. Rad1
{[%clk 0:02:01.1]} 18... Rad8 {[%clk 0:02:02]} 19. Rd2 {[%clk 0:01:51.6]} 19...
Qe7 {[%clk 0:01:46.9]} 20. h3 {[%clk 0:01:49.1]} 20... Bc8 {[%clk 0:01:43.7]}
21. Kh2 {[%clk 0:01:48.7]} 21... Ne4 {[%clk 0:01:40.7]} 22. Rdd1 {[%clk
0:01:42.9]} 22... h5 {[%clk 0:01:39.2]} 23. h4 {[%clk 0:01:42]} 23... Bg4 {[%clk
0:01:33]} 24. Rc1 {[%clk 0:01:40]} 24... Nc5 {[%clk 0:01:30.2]} 25. Ng5 {[%clk
0:01:29.9]} 25... Qf6 {[%clk 0:01:15.6]} 26. f3 {[%clk 0:01:19.8]} 26... Bc8
{[%clk 0:01:13.5]} 27. e4 {[%clk 0:01:19.5]} 27... Qxd4 {[%clk 0:01:08]} 28.
Rfd1 {[%clk 0:01:13.6]} 28... Qf6 {[%clk 0:01:00.1]} 29. Qc4 {[%clk 0:01:13.6]}
29... Bh6 {[%clk 0:00:55.4]} 30. e5 {[%clk 0:00:57.5]} 30... Rxe5 {[%clk
0:00:46.9]} 31. f4 {[%clk 0:00:53.1]} 31... Re7 {[%clk 0:00:38.6]} 32. Bd5
{[%clk 0:00:52.9]} 32... Bxg5 {[%clk 0:00:35.9]} 33. hxg5 {[%clk 0:00:53.8]}
33... Qb2+ {[%clk 0:00:32.8]} 34. Kg1 {[%clk 0:00:49.2]} 34... Bh3 {[%clk
0:00:26.6]} 35. Rc2 {[%clk 0:00:48.8]} 35... Qb4 {[%clk 0:00:21.5]} 36. Qxb4
{[%clk 0:00:37.6]} 36... axb4 {[%clk 0:00:19.4]} 37. Kh2 {[%clk 0:00:38.5]}
37... Bg4 {[%clk 0:00:18]} 38. Rb1 {[%clk 0:00:37.2]} 38... Bf5 {[%clk
0:00:14.1]} 39. Rcb2 {[%clk 0:00:35.1]} 39... Bxb1 {[%clk 0:00:13.5]} 40. Rxb1
{[%clk 0:00:36]} 40... Re2+ {[%clk 0:00:11.6]} 41. Kh3 {[%clk 0:00:36.1]} 41...
b3 {[%clk 0:00:11.5]} 42. Bf3 {[%clk 0:00:35]} 42... Re3 {[%clk 0:00:10.7]} 43.
Bd5 {[%clk 0:00:35.4]} 43... b6 {[%clk 0:00:09.1]} 44. Rb2 {[%clk 0:00:35.5]}
44... Rde8 {[%clk 0:00:08.4]} 45. Bc4 {[%clk 0:00:34.8]} 45... Rc3 {[%clk
0:00:07.8]} 46. Bd5 {[%clk 0:00:34.7]} 46... Ree3 {[%clk 0:00:07.8]} 47. Rg2
{[%clk 0:00:31.4]} 47... Rc2 {[%clk 0:00:06.8]} 48. Rg1 {[%clk 0:00:31]} 48...
b2 {[%clk 0:00:06]} 49. Rb1 {[%clk 0:00:30.7]} 49... Ree2 {[%clk 0:00:04]} 50.
g4 {[%clk 0:00:29.5]} 50... Re3+ {[%clk 0:00:02.7]} 51. Bf3 {[%clk 0:00:25.5]}
51... Rxf3+ {[%clk 0:00:01.7]} 52. Kh4 {[%clk 0:00:24.8]} 1-0

[Event "Betsys MČR v online bleskovém šachu 2021"]
[Site "Chess.com"]
[Date "2021.04.17"]
[Round "13"]
[White "Hollow_Head"]
[Black "vaclavbelaska"]
[Result "0-1"]
[WhiteElo "1085"]
[BlackElo "1382"]
[TimeControl "180+1"]
[EndTime "11:11:42 PDT"]
[Termination "Uživatel vaclavbelaska zvítězil matem"]

1. e4 {[%clk 0:03:00.9]} 1... c5 {[%clk 0:02:52.8]} 2. Nf3 {[%clk 0:03:00.4]}
2... d6 {[%clk 0:02:52.3]} 3. Nc3 {[%clk 0:03:00.2]} 3... Nf6 {[%clk 0:02:51.3]}
4. g3 {[%clk 0:03:00.5]} 4... g6 {[%clk 0:02:51]} 5. Bg2 {[%clk 0:03:01]} 5...
Bg7 {[%clk 0:02:49.4]} 6. O-O {[%clk 0:03:01.4]} 6... O-O {[%clk 0:02:48.6]} 7.
d3 {[%clk 0:03:02]} 7... Nc6 {[%clk 0:02:45.7]} 8. Nd5 {[%clk 0:03:00.5]} 8...
Nxd5 {[%clk 0:02:44.4]} 9. exd5 {[%clk 0:03:01.1]} 9... Ne5 {[%clk 0:02:43.7]}
10. Nxe5 {[%clk 0:03:01]} 10... Bxe5 {[%clk 0:02:42.1]} 11. c3 {[%clk
0:03:00.6]} 11... Bf5 {[%clk 0:02:39.2]} 12. d4 {[%clk 0:02:59.8]} 12... cxd4
{[%clk 0:02:38.6]} 13. cxd4 {[%clk 0:02:59.7]} 13... Bg7 {[%clk 0:02:38.2]} 14.
Bd2 {[%clk 0:02:55.2]} 14... Rc8 {[%clk 0:02:36.6]} 15. Rc1 {[%clk 0:02:54.5]}
15... Rxc1 {[%clk 0:02:34.9]} 16. Qxc1 {[%clk 0:02:55.2]} 16... Qc8 {[%clk
0:02:34.8]} 17. Qxc8 {[%clk 0:02:44.3]} 17... Rxc8 {[%clk 0:02:35.1]} 18. Be3
{[%clk 0:02:43.2]} 18... Rc2 {[%clk 0:02:29.1]} 19. Rb1 {[%clk 0:02:36]} 19...
Rxf2 {[%clk 0:02:20.2]} 20. Bxf2 {[%clk 0:02:32.1]} 20... Bxb1 {[%clk
0:02:18.3]} 21. a3 {[%clk 0:02:30.2]} 21... Bh6 {[%clk 0:02:11.3]} 22. Kf1
{[%clk 0:02:28.6]} 22... Bc1 {[%clk 0:02:08.6]} 23. b4 {[%clk 0:02:20.4]} 23...
Bxa3 {[%clk 0:02:06.3]} 24. b5 {[%clk 0:02:20.6]} 24... Bd3+ {[%clk 0:02:04.8]}
25. Ke1 {[%clk 0:02:20]} 25... Bb4+ {[%clk 0:02:02.1]} 26. Kd1 {[%clk 0:02:20]}
26... Bxb5 {[%clk 0:02:01.7]} 27. Kc2 {[%clk 0:02:17.6]} 27... Kg7 {[%clk
0:01:55.5]} 28. Kb3 {[%clk 0:02:17.3]} 28... Ba5 {[%clk 0:01:52.5]} 29. Be3
{[%clk 0:02:12.7]} 29... f5 {[%clk 0:01:48.9]} 30. Bf3 {[%clk 0:02:09.9]} 30...
Kf6 {[%clk 0:01:47.1]} 31. g4 {[%clk 0:02:08.7]} 31... fxg4 {[%clk 0:01:45.6]}
32. Bxg4 {[%clk 0:02:09.3]} 32... Bd3 {[%clk 0:01:36.2]} 33. h4 {[%clk 0:02:06]}
33... Be4 {[%clk 0:01:34.9]} 34. Bg5+ {[%clk 0:02:04]} 34... Kf7 {[%clk
0:01:32.8]} 35. Be6+ {[%clk 0:02:03.5]} 35... Kf8 {[%clk 0:01:31.1]} 36. Bh6+
{[%clk 0:02:03.6]} 36... Ke8 {[%clk 0:01:30.1]} 37. Ka4 {[%clk 0:02:00.9]} 37...
Bc3 {[%clk 0:01:26.4]} 38. Kb3 {[%clk 0:01:54.8]} 38... Bxd4 {[%clk 0:01:24.3]}
39. Kc4 {[%clk 0:01:54.2]} 39... Be5 {[%clk 0:01:23]} 40. Kb5 {[%clk 0:01:46.3]}
40... Bf5 {[%clk 0:01:20.4]} 41. Bxf5 {[%clk 0:01:44.6]} 41... gxf5 {[%clk
0:01:19]} 42. Kc4 {[%clk 0:01:43.7]} 42... Kf7 {[%clk 0:01:16.4]} 43. Kd3 {[%clk
0:01:44.1]} 43... Kf6 {[%clk 0:01:14.2]} 44. Bg5+ {[%clk 0:01:43.5]} 44... Kf7
{[%clk 0:01:11.5]} 45. Ke3 {[%clk 0:01:43.9]} 45... Bf6 {[%clk 0:01:10.6]} 46.
Bxf6 {[%clk 0:01:42.5]} 46... Kxf6 {[%clk 0:01:09.7]} 47. Kf4 {[%clk 0:01:43]}
47... h5 {[%clk 0:01:09]} 48. Kf3 {[%clk 0:01:40.3]} 48... e6 {[%clk 0:01:08.1]}
49. dxe6 {[%clk 0:01:39.9]} 49... Kxe6 {[%clk 0:01:08.3]} 50. Kf4 {[%clk
0:01:40.5]} 50... Kf6 {[%clk 0:01:06]} 51. Kf3 {[%clk 0:01:40.3]} 51... a5
{[%clk 0:01:05.5]} 52. Kf4 {[%clk 0:01:39.9]} 52... a4 {[%clk 0:01:06.4]} 53.
Kf3 {[%clk 0:01:40.1]} 53... a3 {[%clk 0:01:07.3]} 54. Kf4 {[%clk 0:01:40.7]}
54... a2 {[%clk 0:01:08.2]} 55. Kf3 {[%clk 0:01:40.9]} 55... a1=Q {[%clk
0:01:07.5]} 56. Kf4 {[%clk 0:01:41.5]} 56... Qd4+ {[%clk 0:01:04.4]} 57. Kf3
{[%clk 0:01:41.8]} 57... b5 {[%clk 0:01:03.8]} 58. Ke2 {[%clk 0:01:41.4]} 58...
b4 {[%clk 0:01:04.1]} 59. Kf3 {[%clk 0:01:41.3]} 59... b3 {[%clk 0:01:04]} 60.
Ke2 {[%clk 0:01:41.8]} 60... b2 {[%clk 0:01:04.3]} 61. Kf3 {[%clk 0:01:42.5]}
61... b1=Q {[%clk 0:01:03.9]} 62. Ke2 {[%clk 0:01:42.8]} 62... Qbe4+ {[%clk
0:01:03.4]} 63. Kf1 {[%clk 0:01:42.6]} 63... Qdd3+ {[%clk 0:01:02]} 64. Kf2
{[%clk 0:01:42.5]} 64... Qdf3+ {[%clk 0:00:56.3]} 65. Kg1 {[%clk 0:01:42.1]}
65... d5 {[%clk 0:00:55.4]} 66. Kh2 {[%clk 0:01:40.2]} 66... d4 {[%clk
0:00:51.5]} 67. Kg1 {[%clk 0:01:40.2]} 67... d3 {[%clk 0:00:51.4]} 68. Kh2
{[%clk 0:01:35.5]} 68... d2 {[%clk 0:00:51.1]} 69. Kg1 {[%clk 0:01:35.9]} 69...
d1=B {[%clk 0:00:48.6]} 70. Kh2 {[%clk 0:01:36.5]} 70... f4 {[%clk 0:00:47.4]}
71. Kg1 {[%clk 0:01:36.2]} 71... Qa3 {[%clk 0:00:41.9]} 72. Kh2 {[%clk
0:01:35.8]} 72... f3 {[%clk 0:00:41.2]} 73. Kg1 {[%clk 0:01:32.4]} 73... Qe1+
{[%clk 0:00:39.1]} 74. Kh2 {[%clk 0:01:32.4]} 74... f2 {[%clk 0:00:37.3]} 75.
Kg2 {[%clk 0:01:32]} 75... f1=B+ {[%clk 0:00:36.1]} 76. Kh2 {[%clk 0:01:32.6]}
76... Qe5+ {[%clk 0:00:30.3]} 77. Kg1 {[%clk 0:01:31.9]} 77... Ba6 {[%clk
0:00:25.7]} 78. Kg2 {[%clk 0:01:30.6]} 78... Qf3+ {[%clk 0:00:20]} 79. Kg1
{[%clk 0:01:30.2]} 79... Qee3+ {[%clk 0:00:19.2]} 80. Kh2 {[%clk 0:01:30]} 80...
Qff2+ {[%clk 0:00:18.7]} 81. Kh1 {[%clk 0:01:29.5]} 81... Bf3# {[%clk
0:00:06.5]} 0-1

[Event "Betsys MČR v online bleskovém šachu 2021"]
[Site "Chess.com"]
[Date "2021.04.17"]
[Round "13"]
[White "ffbp3q"]
[Black "Rozmetal"]
[Result "1-0"]
[WhiteElo "2354"]
[BlackElo "2157"]
[TimeControl "180+1"]
[EndTime "11:11:44 PDT"]
[Termination "Uživatel ffbp3q zvítězil na čas"]

1. d4 {[%clk 0:03:00.9]} 1... Nf6 {[%clk 0:02:59.2]} 2. c4 {[%clk 0:03:00.8]}
2... g6 {[%clk 0:02:58.5]} 3. Nc3 {[%clk 0:03:00.1]} 3... d6 {[%clk 0:02:57.4]}
4. e4 {[%clk 0:02:59]} 4... Bg7 {[%clk 0:02:57.8]} 5. Nf3 {[%clk 0:02:59.1]}
5... O-O {[%clk 0:02:58.2]} 6. h3 {[%clk 0:02:59.5]} 6... e5 {[%clk 0:02:57.3]}
7. d5 {[%clk 0:02:59.1]} 7... a5 {[%clk 0:02:57.3]} 8. Bg5 {[%clk 0:02:58.8]}
8... h6 {[%clk 0:02:55.6]} 9. Be3 {[%clk 0:02:58]} 9... Na6 {[%clk 0:02:55.2]}
10. g4 {[%clk 0:02:56.1]} 10... Nd7 {[%clk 0:02:53.1]} 11. Qd2 {[%clk
0:02:51.1]} 11... Kh7 {[%clk 0:02:52.3]} 12. h4 {[%clk 0:02:39.7]} 12... Ndc5
{[%clk 0:02:50.8]} 13. h5 {[%clk 0:02:10.7]} 13... g5 {[%clk 0:02:49.8]} 14.
Bxg5 {[%clk 0:01:57.3]} 14... hxg5 {[%clk 0:02:26.4]} 15. Nxg5+ {[%clk
0:01:56.8]} 15... Kh8 {[%clk 0:02:18.9]} 16. h6 {[%clk 0:01:55.3]} 16... Bf6
{[%clk 0:02:18]} 17. Nf3 {[%clk 0:01:53.4]} 17... Bxg4 {[%clk 0:02:15.9]} 18.
Be2 {[%clk 0:01:53.4]} 18... Bxf3 {[%clk 0:02:12.1]} 19. Bxf3 {[%clk 0:01:53.3]}
19... Bg5 {[%clk 0:02:12.2]} 20. Qe2 {[%clk 0:01:50.9]} 20... Qf6 {[%clk
0:02:09.2]} 21. Bg4 {[%clk 0:01:45.8]} 21... Nb4 {[%clk 0:02:01.5]} 22. Bf5
{[%clk 0:01:42.7]} 22... Nbd3+ {[%clk 0:02:00]} 23. Kf1 {[%clk 0:01:41.9]} 23...
Nf4 {[%clk 0:01:59.2]} 24. Qf3 {[%clk 0:01:36.1]} 24... Rg8 {[%clk 0:01:56.3]}
25. Nb5 {[%clk 0:01:22.6]} 25... c6 {[%clk 0:01:53.7]} 26. Nc3 {[%clk 0:01:19]}
26... cxd5 {[%clk 0:01:47.1]} 27. cxd5 {[%clk 0:01:18.1]} 27... Ncd3 {[%clk
0:01:41]} 28. Rb1 {[%clk 0:01:11.5]} 28... Rac8 {[%clk 0:01:39.5]} 29. Bxc8
{[%clk 0:01:05.7]} 29... Rxc8 {[%clk 0:01:37.7]} 30. Qg4 {[%clk 0:01:05.4]}
30... Rg8 {[%clk 0:01:29.9]} 31. Nd1 {[%clk 0:01:02.5]} 31... Bh4 {[%clk
0:01:22.9]} 32. Qxh4 {[%clk 0:01:01.4]} 32... Qxh4 {[%clk 0:01:20]} 33. Rxh4
{[%clk 0:01:00.7]} 33... Rc8 {[%clk 0:01:18.5]} 34. Ne3 {[%clk 0:00:57.9]} 34...
Kh7 {[%clk 0:01:13.6]} 35. Kg1 {[%clk 0:00:52]} 35... b5 {[%clk 0:00:59.2]} 36.
f3 {[%clk 0:00:45]} 36... b4 {[%clk 0:00:55.9]} 37. Rg4 {[%clk 0:00:43.5]} 37...
Ng6 {[%clk 0:00:47.1]} 38. Kh2 {[%clk 0:00:41.1]} 38... a4 {[%clk 0:00:44.7]}
39. Rg2 {[%clk 0:00:36.4]} 39... b3 {[%clk 0:00:42.1]} 40. axb3 {[%clk 0:00:36]}
40... axb3 {[%clk 0:00:43]} 41. Ra1 {[%clk 0:00:36.2]} 41... Ndf4 {[%clk
0:00:34.7]} 42. Rd2 {[%clk 0:00:34.9]} 42... Rc7 {[%clk 0:00:21.8]} 43. Ra6
{[%clk 0:00:32.9]} 43... Nh4 {[%clk 0:00:17.6]} 44. Kg3 {[%clk 0:00:30.6]} 44...
Nhg6 {[%clk 0:00:16.2]} 45. Rxd6 {[%clk 0:00:28.3]} 45... Rc1 {[%clk 0:00:16.5]}
46. Rd7 {[%clk 0:00:22.9]} 46... Rg1+ {[%clk 0:00:14.6]} 47. Kh2 {[%clk
0:00:23]} 47... Re1 {[%clk 0:00:13]} 48. Nf5 {[%clk 0:00:20.3]} 48... Nh4 {[%clk
0:00:05.2]} 49. Nxh4 {[%clk 0:00:19.4]} 1-0

[Event "Betsys MČR v online bleskovém šachu 2021"]
[Site "Chess.com"]
[Date "2021.04.17"]
[Round "13"]
[White "Patrik_Kohm"]
[Black "Kamilotka"]
[Result "0-1"]
[WhiteElo "1389"]
[BlackElo "1586"]
[TimeControl "180+1"]
[EndTime "11:11:45 PDT"]
[Termination "Uživatel Kamilotka zvítězil matem"]

1. e4 {[%clk 0:03:00.9]} 1... e5 {[%clk 0:02:57.2]} 2. Nf3 {[%clk 0:03:00.6]}
2... Nc6 {[%clk 0:02:55.5]} 3. Bc4 {[%clk 0:03:00.4]} 3... Be7 {[%clk 0:02:55]}
4. O-O {[%clk 0:02:59.9]} 4... Nf6 {[%clk 0:02:54.9]} 5. d3 {[%clk 0:02:59.6]}
5... d6 {[%clk 0:02:54.9]} 6. Nc3 {[%clk 0:02:58.2]} 6... Bg4 {[%clk 0:02:54.6]}
7. Be3 {[%clk 0:02:57]} 7... h6 {[%clk 0:02:53.8]} 8. h3 {[%clk 0:02:56.7]} 8...
Bh5 {[%clk 0:02:53.5]} 9. Nd5 {[%clk 0:02:53.6]} 9... a6 {[%clk 0:02:48.4]} 10.
Bb3 {[%clk 0:02:49]} 10... O-O {[%clk 0:02:31.2]} 11. Qe2 {[%clk 0:02:44.7]}
11... Nh7 {[%clk 0:02:19.7]} 12. Nxe7+ {[%clk 0:02:43]} 12... Qxe7 {[%clk
0:02:19.3]} 13. Bd5 {[%clk 0:02:41.3]} 13... Rab8 {[%clk 0:02:16.2]} 14. g4
{[%clk 0:02:38]} 14... Bg6 {[%clk 0:02:15.5]} 15. Nh2 {[%clk 0:02:31.8]} 15...
Ng5 {[%clk 0:02:06.7]} 16. Kg2 {[%clk 0:02:24.3]} 16... Ne6 {[%clk 0:01:57.1]}
17. f4 {[%clk 0:02:21.8]} 17... exf4 {[%clk 0:01:54.6]} 18. Bxf4 {[%clk
0:02:20.1]} 18... Ncd4 {[%clk 0:01:53.4]} 19. Qd2 {[%clk 0:02:15.2]} 19... c6
{[%clk 0:01:47.6]} 20. Bb3 {[%clk 0:02:09.9]} 20... Nxf4+ {[%clk 0:01:39.9]} 21.
Rxf4 {[%clk 0:02:07.9]} 21... Ne6 {[%clk 0:01:39]} 22. Bxe6 {[%clk 0:02:06.3]}
22... fxe6 {[%clk 0:01:38.5]} 23. Raf1 {[%clk 0:02:04]} 23... Rxf4 {[%clk
0:01:38.1]} 24. Rxf4 {[%clk 0:02:03.6]} 24... Rf8 {[%clk 0:01:37.8]} 25. Nf3
{[%clk 0:01:58.3]} 25... h5 {[%clk 0:01:15.7]} 26. Rxf8+ {[%clk 0:01:50.9]}
26... Kxf8 {[%clk 0:01:06.1]} 27. Qf4+ {[%clk 0:01:50.3]} 27... Kg8 {[%clk
0:01:04.2]} 28. Qg5 {[%clk 0:01:47.8]} 28... Qxg5 {[%clk 0:00:53.1]} 29. Nxg5
{[%clk 0:01:48.7]} 29... hxg4 {[%clk 0:00:52.5]} 30. hxg4 {[%clk 0:01:48.9]}
30... e5 {[%clk 0:00:48.3]} 31. Kf3 {[%clk 0:01:46.2]} 31... Kf8 {[%clk
0:00:43.7]} 32. Ke3 {[%clk 0:01:42.5]} 32... Ke7 {[%clk 0:00:42.7]} 33. d4
{[%clk 0:01:41.2]} 33... Kf6 {[%clk 0:00:37.6]} 34. Nh3 {[%clk 0:01:37.2]} 34...
Bf7 {[%clk 0:00:32.5]} 35. b3 {[%clk 0:01:32.8]} 35... b5 {[%clk 0:00:27.5]} 36.
c3 {[%clk 0:01:20.8]} 36... a5 {[%clk 0:00:25.7]} 37. dxe5+ {[%clk 0:01:11.9]}
37... dxe5 {[%clk 0:00:20.2]} 38. Nf2 {[%clk 0:01:11.4]} 38... Kg5 {[%clk
0:00:19.4]} 39. Kd3 {[%clk 0:01:09.3]} 39... Kf4 {[%clk 0:00:17.7]} 40. Nd1
{[%clk 0:01:03.5]} 40... Kxg4 {[%clk 0:00:17]} 41. c4 {[%clk 0:01:03.2]} 41...
bxc4+ {[%clk 0:00:14.6]} 42. bxc4 {[%clk 0:01:04.1]} 42... Kf3 {[%clk
0:00:14.4]} 43. Nc3 {[%clk 0:01:03.1]} 43... g5 {[%clk 0:00:13.7]} 44. Na4
{[%clk 0:00:59.8]} 44... g4 {[%clk 0:00:13]} 45. Nb2 {[%clk 0:00:59]} 45... g3
{[%clk 0:00:12]} 46. Nd1 {[%clk 0:00:58.8]} 46... g2 {[%clk 0:00:10.9]} 47. Ne3
{[%clk 0:00:57.3]} 47... g1=Q {[%clk 0:00:09.6]} 48. Nc2 {[%clk 0:00:56.7]}
48... Qd1+ {[%clk 0:00:09]} 49. Kc3 {[%clk 0:00:56]} 49... Kf2 {[%clk
0:00:07.2]} 50. Kb3 {[%clk 0:00:54.9]} 50... Qxc2+ {[%clk 0:00:06.5]} 51. Kxc2
{[%clk 0:00:54.1]} 51... Ke3 {[%clk 0:00:07.4]} 52. Kc3 {[%clk 0:00:53.1]} 52...
Kxe4 {[%clk 0:00:08.3]} 53. Kb3 {[%clk 0:00:53.4]} 53... Kd4 {[%clk 0:00:08.4]}
54. Ka4 {[%clk 0:00:53.8]} 54... Bxc4 {[%clk 0:00:09.1]} 55. Kxa5 {[%clk
0:00:54.7]} 55... e4 {[%clk 0:00:09.8]} 56. Kb6 {[%clk 0:00:54.6]} 56... Bxa2
{[%clk 0:00:09.7]} 57. Kxc6 {[%clk 0:00:55.4]} 57... e3 {[%clk 0:00:10.6]} 58.
Kd6 {[%clk 0:00:55.5]} 58... e2 {[%clk 0:00:11.5]} 59. Kd7 {[%clk 0:00:55.6]}
59... e1=Q {[%clk 0:00:11.4]} 60. Kc6 {[%clk 0:00:55.2]} 60... Qe4+ {[%clk
0:00:10.8]} 61. Kc7 {[%clk 0:00:56.1]} 61... Kc5 {[%clk 0:00:10.5]} 62. Kb8
{[%clk 0:00:55.6]} 62... Qd5 {[%clk 0:00:09.9]} 63. Ka7 {[%clk 0:00:56.5]} 63...
Kc6 {[%clk 0:00:09.4]} 64. Kb8 {[%clk 0:00:57.4]} 64... Qd6+ {[%clk 0:00:09]}
65. Ka7 {[%clk 0:00:58.3]} 65... Qc7+ {[%clk 0:00:08.9]} 66. Ka6 {[%clk
0:00:58]} 66... Qb6# {[%clk 0:00:08.8]} 0-1

[Event "Betsys MČR v online bleskovém šachu 2021"]
[Site "Chess.com"]
[Date "2021.04.17"]
[Round "13"]
[White "NikolaKusova"]
[Black "pburak"]
[Result "0-1"]
[WhiteElo "966"]
[BlackElo "1286"]
[TimeControl "180+1"]
[EndTime "11:11:45 PDT"]
[Termination "Uživatel pburak zvítězil na čas"]

1. e4 {[%clk 0:03:00.9]} 1... e5 {[%clk 0:02:59]} 2. Nf3 {[%clk 0:02:59.9]} 2...
Nc6 {[%clk 0:02:58.2]} 3. d4 {[%clk 0:02:59.2]} 3... exd4 {[%clk 0:02:57.1]} 4.
Bc4 {[%clk 0:02:56.7]} 4... Nf6 {[%clk 0:02:33.1]} 5. e5 {[%clk 0:02:53.9]} 5...
d5 {[%clk 0:02:26.5]} 6. Bb5 {[%clk 0:02:52.6]} 6... Ne4 {[%clk 0:02:22.8]} 7.
Qe2 {[%clk 0:02:52.1]} 7... a6 {[%clk 0:02:18.7]} 8. Ba4 {[%clk 0:02:49.6]} 8...
Bc5 {[%clk 0:02:15.8]} 9. O-O {[%clk 0:02:40.4]} 9... O-O {[%clk 0:01:59.5]} 10.
Bxc6 {[%clk 0:02:17.9]} 10... bxc6 {[%clk 0:01:58.6]} 11. Nbd2 {[%clk
0:02:10.8]} 11... Bg4 {[%clk 0:01:56.9]} 12. Nxe4 {[%clk 0:02:07.1]} 12... dxe4
{[%clk 0:01:53.8]} 13. Qxe4 {[%clk 0:02:06.3]} 13... Qd7 {[%clk 0:01:46.7]} 14.
Ng5 {[%clk 0:01:52.7]} 14... g6 {[%clk 0:01:39.2]} 15. h3 {[%clk 0:01:39]} 15...
Bf5 {[%clk 0:01:36.5]} 16. Qf3 {[%clk 0:01:33.5]} 16... Bxc2 {[%clk 0:01:28.1]}
17. Qe2 {[%clk 0:01:20.5]} 17... Bf5 {[%clk 0:01:25.5]} 18. Bf4 {[%clk
0:01:15.2]} 18... Rfe8 {[%clk 0:01:19.3]} 19. g4 {[%clk 0:01:05.3]} 19... Be6
{[%clk 0:01:12.7]} 20. Nxe6 {[%clk 0:01:02]} 20... Qxe6 {[%clk 0:01:09.6]} 21.
Rac1 {[%clk 0:00:59.2]} 21... Bb6 {[%clk 0:01:02.6]} 22. Qe4 {[%clk 0:00:47.2]}
22... Qd5 {[%clk 0:00:58.3]} 23. Qxd5 {[%clk 0:00:42.3]} 23... cxd5 {[%clk
0:00:58]} 24. Rc6 {[%clk 0:00:35.9]} 24... Re6 {[%clk 0:00:52.3]} 25. Rxe6
{[%clk 0:00:32.7]} 25... fxe6 {[%clk 0:00:51.9]} 26. Rc1 {[%clk 0:00:22.9]}
26... Rf8 {[%clk 0:00:46.8]} 27. Bh6 {[%clk 0:00:18.9]} 27... Rf3 {[%clk
0:00:42.3]} 28. Rc6 {[%clk 0:00:16.8]} 28... Kf7 {[%clk 0:00:38.2]} 29. Bg5
{[%clk 0:00:13.5]} 29... Rxh3 {[%clk 0:00:34.8]} 30. Kg2 {[%clk 0:00:13]} 30...
Rd3 {[%clk 0:00:32.7]} 31. b3 {[%clk 0:00:10.3]} 31... Rd2 {[%clk 0:00:29.8]}
32. Kf3 {[%clk 0:00:09.7]} 32... Rxa2 {[%clk 0:00:26.9]} 33. Kg2 {[%clk
0:00:08.4]} 33... d3 {[%clk 0:00:25.7]} 34. Kf1 {[%clk 0:00:07.7]} 34... d2
{[%clk 0:00:23.5]} 35. Ke2 {[%clk 0:00:06.9]} 35... Ba5 {[%clk 0:00:19.1]} 36.
Bxd2 {[%clk 0:00:05.9]} 36... Rxd2+ {[%clk 0:00:18.2]} 37. Ke1 {[%clk
0:00:05.4]} 37... Rc2+ {[%clk 0:00:17.4]} 38. Kd1 {[%clk 0:00:04.6]} 38... Rxc6
{[%clk 0:00:17]} 39. Ke2 {[%clk 0:00:04.1]} 39... d4 {[%clk 0:00:17.1]} 40. Kf3
{[%clk 0:00:03.7]} 40... d3 {[%clk 0:00:17.1]} 41. Kg2 {[%clk 0:00:03.1]} 41...
d2 {[%clk 0:00:15.9]} 42. Kh3 {[%clk 0:00:03.5]} 42... d1=Q {[%clk 0:00:14.6]}
43. Kh4 {[%clk 0:00:03.2]} 43... Qh1+ {[%clk 0:00:13.9]} 44. Kg3 {[%clk
0:00:02.8]} 44... Rc3+ {[%clk 0:00:12.6]} 45. Kf4 {[%clk 0:00:01.5]} 45... Qf3+
{[%clk 0:00:11.5]} 0-1